{"text_format":"3","workbook":"xlsx","n_sheets":2,"sheets":["Alkalmazottak időbeosztása","Beállítás"],"not_rendered":{"defined_names":21},"read":"whole","date_system":"1900"}

{"sheet":"Alkalmazottak időbeosztása","index":0,"n_rows":296,"n_cols":21,"rows_kept":296,"merged":[[6,1,6,9],[66,1,66,9],[126,1,126,9],[186,1,186,9],[246,1,246,9]]}
["Alkalmazottak időbeosztása"]
[]
[null,"ÖSSZESEN:",null,{"$f":"SUM(4:4)","v":{"v":56,"d":"56.00"}}]
[null,"ÓRASZÁM:",null,{"$f":"AlkalmazottNapÓraÖsszesen","v":{"v":8,"d":"8.00"}},{"v":8,"d":"8.00"},{"v":8,"d":"8.00"},{"v":8,"d":"8.00"},{"v":8,"d":"8.00"},{"v":8,"d":"8.00"},{"v":8,"d":"8.00"},{"v":0,"d":"0.00"},{"v":0,"d":"0.00"},{"v":0,"d":"0.00"},{"v":0,"d":"0.00"},{"v":0,"d":"0.00"},{"v":0,"d":"0.00"},{"v":0,"d":"0.00"},{"v":0,"d":"0.00"},{"v":0,"d":"0.00"},{"v":0,"d":"0.00"},{"v":0,"d":"0.00"}]
[null,"ALKALMAZOTT:",null,"Béres K","Pozsony B","Budai P","Pozsony B","Biber A","Harmath Z","Bedecs A"]
[]
[null,"2012-07-16T09:00:00"]
[null,{"$f":"B7","v":41106.375},{"$nulls":5},"Szabadság"]
[null,{"$f":"IdőszakokMegjelenítése","v":":15"},null,"Recepciós",{"$nulls":3},"Szabadság"]
[null,":30",null,"Recepciós",{"$nulls":3},"Szabadság"]
[null,":45",null,"Recepciós","Ellenőr",null,"Ügyfélszolgálat","Szabadság"]
[null,"7:00 de.",null,"Recepciós","Ellenőr",null,"Ügyfélszolgálat","Szabadság"]
[null,":15",null,"Recepciós","Ellenőr",null,"Ügyfélszolgálat","Szabadság"]
[null,":30",null,"Recepciós","Ellenőr",null,"Ügyfélszolgálat","Szabadság","Könyvelés"]
[null,":45",null,"Recepciós","Ellenőr",null,"Ügyfélszolgálat","Szabadság","Könyvelés","Portás"]
[null,"7:00 de.",null,"Recepciós","Ellenőr",null,"Ügyfélszolgálat","Szabadság","Könyvelés","Portás"]
[null,":15",null,"Recepciós","Ellenőr","Kísérő","Ügyfélszolgálat","Szabadság","Könyvelés","Portás"]
[null,":30",null,"Recepciós","Szünet","Kísérő","Ügyfélszolgálat","Szabadság","Könyvelés","Portás"]
[null,":45",null,"Ebéd","Ellenőr","Kísérő","Ügyfélszolgálat","Szabadság","Könyvelés","Portás"]
[null,"7:00 du.",null,"Ebéd","Ellenőr","Kísérő","Ügyfélszolgálat","Szabadság","Könyvelés","Portás"]
[null,":15",null,"Recepciós","Ellenőr","Kísérő","Ügyfélszolgálat","Szabadság","Szünet","Portás"]
[null,":30",null,"Recepciós","Ellenőr","Szünet","Ügyfélszolgálat","Szabadság","Telefonok","Szünet"]
[null,":45",null,"Recepciós","Ellenőr","Kísérő","Ügyfélszolgálat","Szabadság","Telefonok","Portás"]
[null,"7:00 du.",null,"Recepciós","Ellenőr","Kísérő","Ügyfélszolgálat","Szabadság","Telefonok","Portás"]
[null,":15",null,"Recepciós","Ellenőr","Kísérő","Ebéd","Szabadság","Telefonok","Portás"]
[null,":30",null,null,"Ellenőr","Kísérő","Ebéd","Szabadság","Telefonok","Portás"]
[null,":45",null,null,"Ellenőr","Kísérő","Ebéd","Szabadság","Ebéd","Portás"]
[null,"7:00 du.",null,"Pénztáros","Ebéd","Kísérő","Ebéd","Szabadság","Ebéd","Portás"]
[null,":15",null,"Pénztáros","Ebéd","Kísérő","Ügyfélszolgálat","Szabadság","Telefonok","Portás"]
[null,":30",null,"Pénztáros","Ebéd","Ebéd","Ügyfélszolgálat","Szabadság","Telefonok","Ebéd"]
[null,":45",null,"Pénztáros","Ebéd","Ebéd","Ügyfélszolgálat","Szabadság","Telefonok","Ebéd"]
[null,"7:00 du.",null,"Pénztáros","Biztonság","Ebéd","Ügyfélszolgálat","Szabadság","Telefonok","Ebéd"]
[null,":15",null,"Pénztáros","Biztonság","Ebéd","Ügyfélszolgálat","Szabadság","Telefonok","Ebéd"]
[null,":30",null,"Pénztáros","Biztonság","Kísérő","Ügyfélszolgálat","Szabadság","Telefonok","Bezárás"]
[null,":45",null,"Pénztáros","Biztonság","Kísérő","Ügyfélszolgálat","Szabadság","Telefonok","Bezárás"]
[null,"7:00 du.",null,"Pénztáros","Biztonság","Kísérő","Ügyfélszolgálat","Szabadság","Szünet","Bezárás"]
[null,":15",null,"Szünet","Biztonság","Kísérő","Szünet","Szabadság","Telefonok","Bezárás"]
[null,":30",null,"Pénztáros","Biztonság","Kísérő","Ügyfélszolgálat","Szabadság","Telefonok","Bezárás"]
[null,":45",null,"Pénztáros","Biztonság","Kísérő","Ügyfélszolgálat","Szabadság","Telefonok","Bezárás"]
[null,"7:00 du.",null,"Pénztáros","Biztonság","Kísérő","Ügyfélszolgálat",null,"Telefonok","Bezárás"]
[null,":15",null,"Pénztáros","Biztonság","Kísérő","Ügyfélszolgálat",null,"Telefonok","Bezárás"]
[null,":30",null,"Pénztáros","Biztonság","Kísérő","Ügyfélszolgálat",null,"Telefonok","Bezárás"]
[null,":45",null,"Pénztáros","Biztonság","Kísérő","Ügyfélszolgálat",null,"Telefonok","Bezárás"]
[null,"7:00 du.",null,"Pénztáros","Biztonság","Kísérő","Ügyfélszolgálat",null,"Telefonok","Bezárás"]
[null,":15",null,"Pénztáros","Biztonság","Kísérő","Ügyfélszolgálat",null,"Telefonok","Bezárás"]
[null,":30",null,null,"Biztonság","Kísérő","Ügyfélszolgálat",null,"Telefonok","Bezárás"]
[null,":45",null,null,"Biztonság","Szünet","Ügyfélszolgálat",null,"Telefonok","Szünet"]
[null,"7:00 du.",{"$nulls":3},"Kísérő",null,null,"Telefonok","Bezárás"]
[null,":15",{"$nulls":3},"Kísérő",null,null,"Telefonok","Bezárás"]
[null,":30",{"$nulls":3},"Kísérő",{"$nulls":3},"Bezárás"]
[null,":45",{"$nulls":3},"Kísérő",{"$nulls":3},"Bezárás"]
[null,"7:00 du.",{"$nulls":3},"Kísérő",{"$nulls":3},"Bezárás"]
[null,":15",{"$nulls":3},"Kísérő"]
[null,":30",{"$nulls":3},"Kísérő"]
[null,":45"]
[null,"7:00 du."]
[]
[]
[]
[]
["Alkalmazottak időbeosztása"]
[]
[null,"ÖSSZESEN:",null,{"$f":"SUM(64:64)","v":{"v":56,"d":"56.00"}}]
[null,"ÓRASZÁM:",null,{"$f":"AlkalmazottNapÓraÖsszesen","v":8},8,8,8,8,8,8,{"v":0,"d":"0.00"},{"v":0,"d":"0.00"},{"v":0,"d":"0.00"},{"v":0,"d":"0.00"},{"v":0,"d":"0.00"},{"v":0,"d":"0.00"},{"v":0,"d":"0.00"},{"v":0,"d":"0.00"},{"v":0,"d":"0.00"},{"v":0,"d":"0.00"},{"v":0,"d":"0.00"}]
[null,"ALKALMAZOTT:",null,"Béres K","Pozsony B","Budai P","Tóth A","Biber A","Harmath Z","Bedecs A"]
[]
[null,{"$f":"B7+1","v":"2012-07-17T09:00:00"}]
[null,{"$f":"B67","v":41107.375},{"$nulls":5},"Szabadság"]
[null,{"$f":"IdőszakokMegjelenítése","v":":15"},null,"Recepciós",{"$nulls":3},"Szabadság"]
[null,":30",null,"Recepciós",{"$nulls":3},"Szabadság"]
[null,":45",null,"Recepciós","Ellenőr",null,"Ügyfélszolgálat","Szabadság"]
[null,"7:00 de.",null,"Recepciós","Ellenőr",null,"Ügyfélszolgálat","Szabadság"]
[null,":15",null,"Recepciós","Ellenőr",null,"Ügyfélszolgálat","Szabadság"]
[null,":30",null,"Recepciós","Ellenőr",null,"Ügyfélszolgálat","Szabadság","Könyvelés"]
[null,":45",null,"Recepciós","Ellenőr",null,"Ügyfélszolgálat","Szabadság","Könyvelés","Portás"]
[null,"7:00 de.",null,"Recepciós","Ellenőr",null,"Ügyfélszolgálat","Szabadság","Könyvelés","Portás"]
[null,":15",null,"Recepciós","Ellenőr","Kísérő","Ügyfélszolgálat","Szabadság","Könyvelés","Portás"]
[null,":30",null,"Recepciós","Szünet","Kísérő","Ügyfélszolgálat","Szabadság","Könyvelés","Portás"]
[null,":45",null,"Ebéd","Ellenőr","Kísérő","Ügyfélszolgálat","Szabadság","Könyvelés","Portás"]
[null,"7:00 de.",null,"Ebéd","Ellenőr","Kísérő","Ügyfélszolgálat","Szabadság","Könyvelés","Portás"]
[null,":15",null,"Recepciós","Ellenőr","Kísérő","Ügyfélszolgálat","Szabadság","Szünet","Portás"]
[null,":30",null,"Recepciós","Ellenőr","Szünet","Ügyfélszolgálat","Szabadság","Telefonok","Szünet"]
[null,":45",null,"Recepciós","Ellenőr","Kísérő","Ügyfélszolgálat","Szabadság","Telefonok","Portás"]
[null,"7:00 de.",null,"Recepciós","Ellenőr","Kísérő","Ügyfélszolgálat","Szabadság","Telefonok","Portás"]
[null,":15",null,"Recepciós","Ellenőr","Kísérő","Ebéd","Szabadság","Telefonok","Portás"]
[null,":30",null,null,"Ellenőr","Kísérő","Ebéd","Szabadság","Telefonok","Portás"]
[null,":45",null,null,"Ellenőr","Kísérő","Ebéd","Szabadság","Ebéd","Portás"]
[null,"7:00 de.",null,"Pénztáros","Ebéd","Kísérő","Ebéd","Szabadság","Ebéd","Portás"]
[null,":15",null,"Pénztáros","Ebéd","Kísérő","Ügyfélszolgálat","Szabadság","Telefonok","Portás"]
[null,":30",null,"Pénztáros","Ebéd","Ebéd","Ügyfélszolgálat","Szabadság","Telefonok","Ebéd"]
[null,":45",null,"Pénztáros","Ebéd","Ebéd","Ügyfélszolgálat","Szabadság","Telefonok","Ebéd"]
[null,"7:00 de.",null,"Pénztáros","Biztonság","Ebéd","Ügyfélszolgálat","Szabadság","Telefonok","Ebéd"]
[null,":15",null,"Pénztáros","Biztonság","Ebéd","Ügyfélszolgálat","Szabadság","Telefonok","Ebéd"]
[null,":30",null,"Pénztáros","Biztonság","Kísérő","Ügyfélszolgálat","Szabadság","Telefonok","Bezárás"]
[null,":45",null,"Pénztáros","Biztonság","Kísérő","Ügyfélszolgálat","Szabadság","Telefonok","Bezárás"]
[null,"7:00 de.",null,"Pénztáros","Biztonság","Kísérő","Ügyfélszolgálat","Szabadság","Szünet","Bezárás"]
[null,":15",null,"Szünet","Biztonság","Kísérő","Szünet","Szabadság","Telefonok","Bezárás"]
[null,":30",null,"Pénztáros","Biztonság","Kísérő","Ügyfélszolgálat","Szabadság","Telefonok","Bezárás"]
[null,":45",null,"Pénztáros","Biztonság","Kísérő","Ügyfélszolgálat","Szabadság","Telefonok","Bezárás"]
[null,"7:00 de.",null,"Pénztáros","Biztonság","Kísérő","Ügyfélszolgálat",null,"Telefonok","Bezárás"]
[null,":15",null,"Pénztáros","Biztonság","Kísérő","Ügyfélszolgálat",null,"Telefonok","Bezárás"]
[null,":30",null,"Pénztáros","Biztonság","Kísérő","Ügyfélszolgálat",null,"Telefonok","Bezárás"]
[null,":45",null,"Pénztáros","Biztonság","Kísérő","Ügyfélszolgálat",null,"Telefonok","Bezárás"]
[null,"7:00 de.",null,"Pénztáros","Biztonság","Kísérő","Ügyfélszolgálat",null,"Telefonok","Bezárás"]
[null,":15",null,"Pénztáros","Biztonság","Kísérő","Ügyfélszolgálat",null,"Telefonok","Bezárás"]
[null,":30",null,null,"Biztonság","Kísérő","Ügyfélszolgálat",null,"Telefonok","Bezárás"]
[null,":45",null,null,"Biztonság","Szünet","Ügyfélszolgálat",null,"Telefonok","Szünet"]
[null,"7:00 de.",{"$nulls":3},"Kísérő",null,null,"Telefonok","Bezárás"]
[null,":15",{"$nulls":3},"Kísérő",null,null,"Telefonok","Bezárás"]
[null,":30",{"$nulls":3},"Kísérő",{"$nulls":3},"Bezárás"]
[null,":45",{"$nulls":3},"Kísérő",{"$nulls":3},"Bezárás"]
[null,"7:00 de.",{"$nulls":3},"Kísérő",{"$nulls":3},"Bezárás"]
[null,":15",{"$nulls":3},"Kísérő"]
[null,":30",{"$nulls":3},"Kísérő"]
[null,":45"]
[null,"7:00 du."]
[]
[]
[]
[]
["Alkalmazottak időbeosztása"]
[]
[null,"ÖSSZESEN:",null,{"$f":"SUM(124:124)","v":{"v":56,"d":"56.00"}}]
[null,"ÓRASZÁM:",null,{"$f":"AlkalmazottNapÓraÖsszesen","v":{"v":8,"d":"8.00"}},{"v":8,"d":"8.00"},{"v":8,"d":"8.00"},{"v":8,"d":"8.00"},{"v":8,"d":"8.00"},{"v":8,"d":"8.00"},{"v":8,"d":"8.00"},{"v":0,"d":"0.00"},{"v":0,"d":"0.00"},{"v":0,"d":"0.00"},{"v":0,"d":"0.00"},{"v":0,"d":"0.00"},{"v":0,"d":"0.00"},{"v":0,"d":"0.00"},{"v":0,"d":"0.00"},{"v":0,"d":"0.00"},{"v":0,"d":"0.00"},{"v":0,"d":"0.00"}]
[null,"ALKALMAZOTT:",null,"Béres K","Pozsony B","Budai P","Tóth A","Biber A","Harmath Z","Bedecs A"]
[]
[null,{"$f":"B67+1","v":"2012-07-18T09:00:00"}]
[null,{"$f":"B127","v":41108.375},{"$nulls":5},"Szabadság"]
[null,{"$f":"IdőszakokMegjelenítése","v":":15"},null,"Recepciós",{"$nulls":3},"Szabadság"]
[null,":30",null,"Recepciós",{"$nulls":3},"Szabadság"]
[null,":45",null,"Recepciós","Ellenőr",null,"Ügyfélszolgálat","Szabadság"]
[null,"7:00 du.",null,"Recepciós","Ellenőr",null,"Ügyfélszolgálat","Szabadság"]
[null,":15",null,"Recepciós","Ellenőr",null,"Ügyfélszolgálat","Szabadság"]
[null,":30",null,"Recepciós","Ellenőr",null,"Ügyfélszolgálat","Szabadság","Könyvelés"]
[null,":45",null,"Recepciós","Ellenőr",null,"Ügyfélszolgálat","Szabadság","Könyvelés","Portás"]
[null,"7:00 du.",null,"Recepciós","Ellenőr",null,"Ügyfélszolgálat","Szabadság","Könyvelés","Portás"]
[null,":15",null,"Recepciós","Ellenőr","Kísérő","Ügyfélszolgálat","Szabadság","Könyvelés","Portás"]
[null,":30",null,"Recepciós","Szünet","Kísérő","Ügyfélszolgálat","Szabadság","Könyvelés","Portás"]
[null,":45",null,"Ebéd","Ellenőr","Kísérő","Ügyfélszolgálat","Szabadság","Könyvelés","Portás"]
[null,"7:00 du.",null,"Ebéd","Ellenőr","Kísérő","Ügyfélszolgálat","Szabadság","Könyvelés","Portás"]
[null,":15",null,"Recepciós","Ellenőr","Kísérő","Ügyfélszolgálat","Szabadság","Szünet","Portás"]
[null,":30",null,"Recepciós","Ellenőr","Szünet","Ügyfélszolgálat","Szabadság","Telefonok","Szünet"]
[null,":45",null,"Recepciós","Ellenőr","Kísérő","Ügyfélszolgálat","Szabadság","Telefonok","Portás"]
[null,"7:00 du.",null,"Recepciós","Ellenőr","Kísérő","Ügyfélszolgálat","Szabadság","Telefonok","Portás"]
[null,":15",null,"Recepciós","Ellenőr","Kísérő","Ebéd","Szabadság","Telefonok","Portás"]
[null,":30",null,null,"Ellenőr","Kísérő","Ebéd","Szabadság","Telefonok","Portás"]
[null,":45",null,null,"Ellenőr","Kísérő","Ebéd","Szabadság","Ebéd","Portás"]
[null,"7:00 du.",null,"Pénztáros","Ebéd","Kísérő","Ebéd","Szabadság","Ebéd","Portás"]
[null,":15",null,"Pénztáros","Ebéd","Kísérő","Ügyfélszolgálat","Szabadság","Telefonok","Portás"]
[null,":30",null,"Pénztáros","Ebéd","Ebéd","Ügyfélszolgálat","Szabadság","Telefonok","Ebéd"]
[null,":45",null,"Pénztáros","Ebéd","Ebéd","Ügyfélszolgálat","Szabadság","Telefonok","Ebéd"]
[null,"7:00 du.",null,"Pénztáros","Biztonság","Ebéd","Ügyfélszolgálat","Szabadság","Telefonok","Ebéd"]
[null,":15",null,"Pénztáros","Biztonság","Ebéd","Ügyfélszolgálat","Szabadság","Telefonok","Ebéd"]
[null,":30",null,"Pénztáros","Biztonság","Kísérő","Ügyfélszolgálat","Szabadság","Telefonok","Bezárás"]
[null,":45",null,"Pénztáros","Biztonság","Kísérő","Ügyfélszolgálat","Szabadság","Telefonok","Bezárás"]
[null,"7:00 du.",null,"Pénztáros","Biztonság","Kísérő","Ügyfélszolgálat","Szabadság","Szünet","Bezárás"]
[null,":15",null,"Szünet","Biztonság","Kísérő","Szünet","Szabadság","Telefonok","Bezárás"]
[null,":30",null,"Pénztáros","Biztonság","Kísérő","Ügyfélszolgálat","Szabadság","Telefonok","Bezárás"]
[null,":45",null,"Pénztáros","Biztonság","Kísérő","Ügyfélszolgálat","Szabadság","Telefonok","Bezárás"]
[null,"7:00 du.",null,"Pénztáros","Biztonság","Kísérő","Ügyfélszolgálat",null,"Telefonok","Bezárás"]
[null,":15",null,"Pénztáros","Biztonság","Kísérő","Ügyfélszolgálat",null,"Telefonok","Bezárás"]
[null,":30",null,"Pénztáros","Biztonság","Kísérő","Ügyfélszolgálat",null,"Telefonok","Bezárás"]
[null,":45",null,"Pénztáros","Biztonság","Kísérő","Ügyfélszolgálat",null,"Telefonok","Bezárás"]
[null,"7:00 de.",null,"Pénztáros","Biztonság","Kísérő","Ügyfélszolgálat",null,"Telefonok","Bezárás"]
[null,":15",null,"Pénztáros","Biztonság","Kísérő","Ügyfélszolgálat",null,"Telefonok","Bezárás"]
[null,":30",null,null,"Biztonság","Kísérő","Ügyfélszolgálat",null,"Telefonok","Bezárás"]
[null,":45",null,null,"Biztonság","Szünet","Ügyfélszolgálat",null,"Telefonok","Szünet"]
[null,"7:00 de.",{"$nulls":3},"Kísérő",null,null,"Telefonok","Bezárás"]
[null,":15",{"$nulls":3},"Kísérő",null,null,"Telefonok","Bezárás"]
[null,":30",{"$nulls":3},"Kísérő",{"$nulls":3},"Bezárás"]
[null,":45",{"$nulls":3},"Kísérő",{"$nulls":3},"Bezárás"]
[null,"7:00 de.",{"$nulls":3},"Kísérő",{"$nulls":3},"Bezárás"]
[null,":15",{"$nulls":3},"Kísérő"]
[null,":30",{"$nulls":3},"Kísérő"]
[null,":45"]
[null,"7:00 de."]
[]
[]
[]
[]
["Alkalmazottak időbeosztása"]
[]
[null,"ÖSSZESEN:",null,{"$f":"SUM(184:184)","v":{"v":56,"d":"56.00"}}]
[null,"ÓRASZÁM:",null,{"$f":"AlkalmazottNapÓraÖsszesen","v":{"v":8,"d":"8.00"}},{"v":8,"d":"8.00"},{"v":8,"d":"8.00"},{"v":8,"d":"8.00"},{"v":8,"d":"8.00"},{"v":8,"d":"8.00"},{"v":8,"d":"8.00"},{"v":0,"d":"0.00"},{"v":0,"d":"0.00"},{"v":0,"d":"0.00"},{"v":0,"d":"0.00"},{"v":0,"d":"0.00"},{"v":0,"d":"0.00"},{"v":0,"d":"0.00"},{"v":0,"d":"0.00"},{"v":0,"d":"0.00"},{"v":0,"d":"0.00"},{"v":0,"d":"0.00"}]
[null,"ALKALMAZOTT:",null,"Béres K","Pozsony B","Budai P","Tóth A","Biber A","Harmath Z","Bedecs A"]
[]
[null,{"$f":"B127+1","v":"2012-07-19T09:00:00"}]
[null,{"$f":"B187","v":41109.375},{"$nulls":5},"Szabadság"]
[null,{"$f":"IdőszakokMegjelenítése","v":":15"},null,"Recepciós",{"$nulls":3},"Szabadság"]
[null,":30",null,"Recepciós",{"$nulls":3},"Szabadság"]
[null,":45",null,"Recepciós","Ellenőr",null,"Ügyfélszolgálat","Szabadság"]
[null,"7:00 de.",null,"Recepciós","Ellenőr",null,"Ügyfélszolgálat","Szabadság"]
[null,":15",null,"Recepciós","Ellenőr",null,"Ügyfélszolgálat","Szabadság"]
[null,":30",null,"Recepciós","Ellenőr",null,"Ügyfélszolgálat","Szabadság","Könyvelés"]
[null,":45",null,"Recepciós","Ellenőr",null,"Ügyfélszolgálat","Szabadság","Könyvelés","Portás"]
[null,"7:00 de.",null,"Recepciós","Ellenőr",null,"Ügyfélszolgálat","Szabadság","Könyvelés","Portás"]
[null,":15",null,"Recepciós","Ellenőr","Kísérő","Ügyfélszolgálat","Szabadság","Könyvelés","Portás"]
[null,":30",null,"Recepciós","Szünet","Kísérő","Ügyfélszolgálat","Szabadság","Könyvelés","Portás"]
[null,":45",null,"Ebéd","Ellenőr","Kísérő","Ügyfélszolgálat","Szabadság","Könyvelés","Portás"]
[null,"7:00 de.",null,"Ebéd","Ellenőr","Kísérő","Ügyfélszolgálat","Szabadság","Könyvelés","Portás"]
[null,":15",null,"Recepciós","Ellenőr","Kísérő","Ügyfélszolgálat","Szabadság","Szünet","Portás"]
[null,":30",null,"Recepciós","Ellenőr","Szünet","Ügyfélszolgálat","Szabadság","Telefonok","Szünet"]
[null,":45",null,"Recepciós","Ellenőr","Kísérő","Ügyfélszolgálat","Szabadság","Telefonok","Portás"]
[null,"7:00 de.",null,"Recepciós","Ellenőr","Kísérő","Ügyfélszolgálat","Szabadság","Telefonok","Portás"]
[null,":15",null,"Recepciós","Ellenőr","Kísérő","Ebéd","Szabadság","Telefonok","Portás"]
[null,":30",null,null,"Ellenőr","Kísérő","Ebéd","Szabadság","Telefonok","Portás"]
[null,":45",null,null,"Ellenőr","Kísérő","Ebéd","Szabadság","Ebéd","Portás"]
[null,"7:00 de.",null,"Pénztáros","Ebéd","Kísérő","Ebéd","Szabadság","Ebéd","Portás"]
[null,":15",null,"Pénztáros","Ebéd","Kísérő","Ügyfélszolgálat","Szabadság","Telefonok","Portás"]
[null,":30",null,"Pénztáros","Ebéd","Ebéd","Ügyfélszolgálat","Szabadság","Telefonok","Ebéd"]
[null,":45",null,"Pénztáros","Ebéd","Ebéd","Ügyfélszolgálat","Szabadság","Telefonok","Ebéd"]
[null,"7:00 du.",null,"Pénztáros","Biztonság","Ebéd","Ügyfélszolgálat","Szabadság","Telefonok","Ebéd"]
[null,":15",null,"Pénztáros","Biztonság","Ebéd","Ügyfélszolgálat","Szabadság","Telefonok","Ebéd"]
[null,":30",null,"Pénztáros","Biztonság","Kísérő","Ügyfélszolgálat","Szabadság","Telefonok","Bezárás"]
[null,":45",null,"Pénztáros","Biztonság","Kísérő","Ügyfélszolgálat","Szabadság","Telefonok","Bezárás"]
[null,"7:00 du.",null,"Pénztáros","Biztonság","Kísérő","Ügyfélszolgálat","Szabadság","Szünet","Bezárás"]
[null,":15",null,"Szünet","Biztonság","Kísérő","Szünet","Szabadság","Telefonok","Bezárás"]
[null,":30",null,"Pénztáros","Biztonság","Kísérő","Ügyfélszolgálat","Szabadság","Telefonok","Bezárás"]
[null,":45",null,"Pénztáros","Biztonság","Kísérő","Ügyfélszolgálat","Szabadság","Telefonok","Bezárás"]
[null,"7:00 du.",null,"Pénztáros","Biztonság","Kísérő","Ügyfélszolgálat",null,"Telefonok","Bezárás"]
[null,":15",null,"Pénztáros","Biztonság","Kísérő","Ügyfélszolgálat",null,"Telefonok","Bezárás"]
[null,":30",null,"Pénztáros","Biztonság","Kísérő","Ügyfélszolgálat",null,"Telefonok","Bezárás"]
[null,":45",null,"Pénztáros","Biztonság","Kísérő","Ügyfélszolgálat",null,"Telefonok","Bezárás"]
[null,"7:00 du.",null,"Pénztáros","Biztonság","Kísérő","Ügyfélszolgálat",null,"Telefonok","Bezárás"]
[null,":15",null,"Pénztáros","Biztonság","Kísérő","Ügyfélszolgálat",null,"Telefonok","Bezárás"]
[null,":30",null,null,"Biztonság","Kísérő","Ügyfélszolgálat",null,"Telefonok","Bezárás"]
[null,":45",null,null,"Biztonság","Szünet","Ügyfélszolgálat",null,"Telefonok","Szünet"]
[null,"7:00 du.",{"$nulls":3},"Kísérő",null,null,"Telefonok","Bezárás"]
[null,":15",{"$nulls":3},"Kísérő",null,null,"Telefonok","Bezárás"]
[null,":30",{"$nulls":3},"Kísérő",{"$nulls":3},"Bezárás"]
[null,":45",{"$nulls":3},"Kísérő",{"$nulls":3},"Bezárás"]
[null,"7:00 du.",{"$nulls":3},"Kísérő",{"$nulls":3},"Bezárás"]
[null,":15",{"$nulls":3},"Kísérő"]
[null,":30",{"$nulls":3},"Kísérő"]
[null,":45"]
[null,"7:00 du."]
[]
[]
[]
[]
["Alkalmazottak időbeosztása"]
[]
[null,"ÖSSZESEN:",null,{"$f":"SUM(244:244)","v":{"v":56,"d":"56.00"}}]
[null,"ÓRASZÁM:",null,{"$f":"AlkalmazottNapÓraÖsszesen","v":{"v":8,"d":"8.00"}},{"v":8,"d":"8.00"},{"v":8,"d":"8.00"},{"v":8,"d":"8.00"},{"v":8,"d":"8.00"},{"v":8,"d":"8.00"},{"v":8,"d":"8.00"},{"v":0,"d":"0.00"},{"v":0,"d":"0.00"},{"v":0,"d":"0.00"},{"v":0,"d":"0.00"},{"v":0,"d":"0.00"},{"v":0,"d":"0.00"},{"v":0,"d":"0.00"},{"v":0,"d":"0.00"},{"v":0,"d":"0.00"},{"v":0,"d":"0.00"},{"v":0,"d":"0.00"}]
[null,"ALKALMAZOTT:",null,"Béres K","Pozsony B","Budai P","Tóth A","Biber A","Harmath Z","Bedecs A"]
[]
[null,{"$f":"B187+1","v":"2012-07-20T09:00:00"}]
[null,{"$f":"B247","v":41110.375},{"$nulls":5},"Szabadság"]
[null,{"$f":"IdőszakokMegjelenítése","v":":15"},null,"Recepciós",{"$nulls":3},"Szabadság"]
[null,":30",null,"Recepciós",{"$nulls":3},"Szabadság"]
[null,":45",null,"Recepciós","Ellenőr",null,"Ügyfélszolgálat","Szabadság"]
[null,"7:00 du.",null,"Recepciós","Ellenőr",null,"Ügyfélszolgálat","Szabadság"]
[null,":15",null,"Recepciós","Ellenőr",null,"Ügyfélszolgálat","Szabadság"]
[null,":30",null,"Recepciós","Ellenőr",null,"Ügyfélszolgálat","Szabadság","Könyvelés"]
[null,":45",null,"Recepciós","Ellenőr",null,"Ügyfélszolgálat","Szabadság","Könyvelés","Portás"]
[null,"7:00 du.",null,"Recepciós","Ellenőr",null,"Ügyfélszolgálat","Szabadság","Könyvelés","Portás"]
[null,":15",null,"Recepciós","Ellenőr","Kísérő","Ügyfélszolgálat","Szabadság","Könyvelés","Portás"]
[null,":30",null,"Recepciós","Szünet","Kísérő","Ügyfélszolgálat","Szabadság","Könyvelés","Portás"]
[null,":45",null,"Ebéd","Ellenőr","Kísérő","Ügyfélszolgálat","Szabadság","Könyvelés","Portás"]
[null,"7:00 de.",null,"Ebéd","Ellenőr","Kísérő","Ügyfélszolgálat","Szabadság","Könyvelés","Portás"]
[null,":15",null,"Recepciós","Ellenőr","Kísérő","Ügyfélszolgálat","Szabadság","Szünet","Portás"]
[null,":30",null,"Recepciós","Ellenőr","Szünet","Ügyfélszolgálat","Szabadság","Telefonok","Szünet"]
[null,":45",null,"Recepciós","Ellenőr","Kísérő","Ügyfélszolgálat","Szabadság","Telefonok","Portás"]
[null,"7:00 de.",null,"Recepciós","Ellenőr","Kísérő","Ügyfélszolgálat","Szabadság","Telefonok","Portás"]
[null,":15",null,"Recepciós","Ellenőr","Kísérő","Ebéd","Szabadság","Telefonok","Portás"]
[null,":30",null,null,"Ellenőr","Kísérő","Ebéd","Szabadság","Telefonok","Portás"]
[null,":45",null,null,"Ellenőr","Kísérő","Ebéd","Szabadság","Ebéd","Portás"]
[null,"7:00 de.",null,"Pénztáros","Ebéd","Kísérő","Ebéd","Szabadság","Ebéd","Portás"]
[null,":15",null,"Pénztáros","Ebéd","Kísérő","Ügyfélszolgálat","Szabadság","Telefonok","Portás"]
[null,":30",null,"Pénztáros","Ebéd","Ebéd","Ügyfélszolgálat","Szabadság","Telefonok","Ebéd"]
[null,":45",null,"Pénztáros","Ebéd","Ebéd","Ügyfélszolgálat","Szabadság","Telefonok","Ebéd"]
[null,"7:00 de.",null,"Pénztáros","Biztonság","Ebéd","Ügyfélszolgálat","Szabadság","Telefonok","Ebéd"]
[null,":15",null,"Pénztáros","Biztonság","Ebéd","Ügyfélszolgálat","Szabadság","Telefonok","Ebéd"]
[null,":30",null,"Pénztáros","Biztonság","Kísérő","Ügyfélszolgálat","Szabadság","Telefonok","Bezárás"]
[null,":45",null,"Pénztáros","Biztonság","Kísérő","Ügyfélszolgálat","Szabadság","Telefonok","Bezárás"]
[null,"7:00 de.",null,"Pénztáros","Biztonság","Kísérő","Ügyfélszolgálat","Szabadság","Szünet","Bezárás"]
[null,":15",null,"Szünet","Biztonság","Kísérő","Szünet","Szabadság","Telefonok","Bezárás"]
[null,":30",null,"Pénztáros","Biztonság","Kísérő","Ügyfélszolgálat","Szabadság","Telefonok","Bezárás"]
[null,":45",null,"Pénztáros","Biztonság","Kísérő","Ügyfélszolgálat","Szabadság","Telefonok","Bezárás"]
[null,"7:00 de.",null,"Pénztáros","Biztonság","Kísérő","Ügyfélszolgálat",null,"Telefonok","Bezárás"]
[null,":15",null,"Pénztáros","Biztonság","Kísérő","Ügyfélszolgálat",null,"Telefonok","Bezárás"]
[null,":30",null,"Pénztáros","Biztonság","Kísérő","Ügyfélszolgálat",null,"Telefonok","Bezárás"]
[null,":45",null,"Pénztáros","Biztonság","Kísérő","Ügyfélszolgálat",null,"Telefonok","Bezárás"]
[null,"7:00 de.",null,"Pénztáros","Biztonság","Kísérő","Ügyfélszolgálat",null,"Telefonok","Bezárás"]
[null,":15",null,"Pénztáros","Biztonság","Kísérő","Ügyfélszolgálat",null,"Telefonok","Bezárás"]
[null,":30",null,null,"Biztonság","Kísérő","Ügyfélszolgálat",null,"Telefonok","Bezárás"]
[null,":45",null,null,"Biztonság","Szünet","Ügyfélszolgálat",null,"Telefonok","Szünet"]
[null,"7:00 de.",{"$nulls":3},"Kísérő",null,null,"Telefonok","Bezárás"]
[null,":15",{"$nulls":3},"Kísérő",null,null,"Telefonok","Bezárás"]
[null,":30",{"$nulls":3},"Kísérő",{"$nulls":3},"Bezárás"]
[null,":45",{"$nulls":3},"Kísérő",{"$nulls":3},"Bezárás"]
[null,"7:00 de.",{"$nulls":3},"Kísérő",{"$nulls":3},"Bezárás"]
[null,":15",{"$nulls":3},"Kísérő"]
[null,":30",{"$nulls":3},"Kísérő"]
[null,":45"]
[null,"7:00 de."]

{"sheet":"Beállítás","index":1,"n_rows":26,"n_cols":7,"rows_kept":26}
[null,"Beállítás"]
[]
[]
[null,"ÓRÁNKÉNTI EGYSÉGEK\nBEVITEL",4]
[]
[]
[]
[]
[]
[null,"Alkalmazottak",null,"Beosztás/távollét","Szín","Fizetve","Teljes nap"]
[null,"Béres K",null,"Ebéd",1,false,false]
[null,"Biber A",null,"Szünet",1,false,false]
[null,"Harmath Z",null,"Távol",1,false,true]
[null,"Lengyel A",null,"Beteg",1,false,true]
[null,"Pozsony B",null,"Személyes nap",1,true,true]
[null,"Tóth A",null,"Szabadság",1,true,true]
[null,"Bedecs A",null,"Recepciós",2,true,false]
[null,"Budai P",null,"Pénztáros",3,true,false]
[{"$nulls":3},"Ellenőr",4,true,false]
[{"$nulls":3},"Kísérő",5,true,false]
[{"$nulls":3},"Ügyfélszolgálat",6,true,false]
[{"$nulls":3},"Telefonok",7,true,false]
[{"$nulls":3},"Biztonság",8,true,false]
[{"$nulls":3},"Portás",9,true,false]
[{"$nulls":3},"Könyvelés",10,true,false]
[{"$nulls":3},"Bezárás",11,true,false]